bitfinex-derivatives/quotes_ETHF0:USTF0_20241022
["timestamp","ask_amount","ask_price","bid_price","bid_amount"]
[1729574147409,1.42102863,2648.6,2648.5,0.3777]
[1729574147612,1.42102865,2648.6,2648.5,0.3777]
[1729574148001,1.42102865,2648.6,2648.5,1.7377]
[1729574148002,1.4210284,2648.6,2648.5,1.7377]
[1729574148506,1.36,2648.6,2648.5,1.7377]
[1729574151104,4.5678,2648.7,2648.6,0.37769]
[1729574151304,4.62882608,2648.7,2648.6,1.73769]
[1729574151502,4.62882512,2648.7,2648.6,1.73769]
[1729574152300,4.62882651,2648.7,2648.6,1.73769]
[1729574152503,4.5678,2648.7,2648.6,1.73769]
[1729574155614,4.62882617,2648.7,2648.6,1.73769]
[1729574157719,5.00649617,2648.7,2648.5,1.73769]
[1729574158016,1.36,2648.6,2648.5,1.73769]
[1729574158613,1.42102913,2648.6,2648.5,1.73769]
[1729574159209,1.42102913,2648.6,2648.5,1.36]
[1729574159412,1.42102913,2648.6,2648.5,1.7377]
[1729574159413,1.42102829,2648.6,2648.5,1.7377]
[1729574159624,1.48205697,2648.6,2648.5,1.7377]
[1729574160019,1.48205865,2648.6,2648.5,1.7377]
[1729574160909,1.48205865,2648.6,2648.5,1.36]
[1729574161310,1.48205865,2648.6,2648.5,1.7377]
[1729574162119,5.19702829,2648.6,2648.5,1.7377]
[1729574162320,5.25805553,2648.6,2648.5,1.36]
[1729574162621,5.25805531,2648.6,2648.5,1.7377]
[1729574163310,5.25805531,2648.6,2648.5,1.36]
[1729574163511,5.25805531,2648.6,2648.5,1.7377]
[1729574164121,5.25805531,2648.6,2648.5,1.36]
[1729574164828,5.25805531,2648.6,2648.5,1.7377]
[1729574165922,5.25805531,2648.6,2648.3,1.73772]
[1729574165923,5.63574531,2648.6,2648.3,1.73772]
[1729574166120,1.36,2648.4,2648.3,1.73772]
[1729574166427,1.42103014,2648.4,2647.9,40.8]
[1729574166719,1.36,2648.1,2647.9,40.8]
[1729574166921,1.36,2648.2,2648.1,1.73775]
[1729574167121,1.4210377,2648.2,2648.1,1.73775]
[1729574167517,5.1970377,2648.2,2647.4,4.19662752]
[1729574167718,1.36,2647.5,2647.2,0.98882752]
[1729574168024,1.36,2647.3,2647.1,1.7379]
[1729574168325,1.36,2647.3,2646.9,0.98882752]
[1729574168326,1.4210377,2647.2,2646.9,0.98882752]
[1729574168514,1.36,2647.0,2646.9,1.36]
[1729574168915,3.2078,2647.2,2646.9,1.73793]
[1729574169118,3.2078,2647.2,2646.6,1.48037871]
[1729574169119,1.36,2647.0,2646.6,0.98882752]
[1729574169314,1.36,2647.0,2646.9,1.73793]
[1729574169621,1.36,2647.0,2646.9,42.53793]
[1729574169622,0.06106754,2647.0,2646.9,42.53793]
[1729574169819,0.917,2647.3,2647.2,0.37789]
[1729574170122,1.03912346,2647.3,2647.2,1.73789]
[1729574170521,0.12212346,2647.3,2647.2,5.51549]
[1729574170715,0.0610618,2647.3,2647.2,5.51549]
[1729574172016,0.0610618,2647.3,2647.2,46.31549]
[1729574172524,1.36,2647.7,2647.6,0.37783]
[1729574172723,1.36,2647.7,2647.6,1.73783]
[1729574173121,1.36,2647.7,2647.6,42.53783]
[1729574173718,4.5678,2647.8,2647.6,42.16]
[1729574173913,4.5678,2647.8,2647.7,1.73781]
[1729574174229,4.5678,2647.8,2647.7,0.37781]
[1729574174519,4.5678,2647.8,2647.7,1.36]
[1729574174723,4.5678,2647.8,2647.7,1.73781]
[1729574179124,4.5678,2647.9,2647.7,1.36]
[1729574179320,3.2078,2647.9,2647.8,1.36]
[1729574179523,4.5678,2647.9,2647.8,1.36]
[1729574182330,4.5678,2647.9,2647.8,1.7378]
[1729574184127,3.2078,2647.9,2647.8,1.7378]
[1729574184324,0.38406346,2648.6,2648.0,0.37776]
[1729574184325,1.36,2648.1,2648.0,0.37776]
[1729574184530,1.36,2648.1,2648.0,1.73776]
[1729574185631,1.36,2648.1,2648.0,1.36]
[1729574186028,1.36,2648.1,2648.0,1.73777]
[1729574187431,5.136,2648.1,2647.6,40.8]
[1729574187637,1.36,2647.8,2647.7,1.73781]
[1729574188229,1.36,2647.8,2647.7,1.36]
[1729574188536,1.36,2647.8,2647.7,0.37781]
[1729574189633,1.36,2647.8,2647.6,40.8]
[1729574189830,1.36,2647.8,2647.7,1.36]
[1729574190232,1.798379,2647.8,2647.6,42.16]
[1729574190437,1.36,2647.7,2647.6,42.16]
[1729574190634,4.5678,2647.7,2647.6,42.16]
[1729574191642,3.2078,2647.7,2647.6,42.53783]
[1729574191936,3.58556,2648.1,2647.8,0.37779]
[1729574192137,1.42057504,2648.0,2647.9,1.73779]
[1729574192336,1.42057504,2648.0,2647.9,1.36]
[1729574192539,1.42057504,2648.0,2647.9,1.73779]
[1729574192741,1.42057504,2648.0,2647.9,1.36]
[1729574193832,1.4205744,2648.0,2647.9,1.36]
[1729574194533,1.42057313,2648.0,2647.9,1.36]
[1729574197935,1.42057437,2648.0,2647.9,1.36]
[1729574198845,1.42057437,2648.0,2647.8,1.36]
[1729574198846,1.79834437,2648.0,2647.8,1.36]
[1729574199143,1.42057437,2647.9,2647.8,1.36]
[1729574200344,1.42057437,2647.9,2647.8,1.7378]
[1729574200739,1.42057437,2647.9,2647.8,1.36]
[1729574201842,1.36,2647.9,2647.8,1.36]
[1729574202044,1.42057599,2647.9,2647.8,1.7378]
[1729574202441,1.42057509,2647.9,2647.8,1.7378]
[1729574202839,1.42057509,2647.9,2647.8,1.36]
[1729574203143,1.42057509,2647.9,2647.8,1.7378]
[1729574203640,1.42057509,2647.9,2647.8,1.36]
[1729574204648,1.42057509,2647.9,2647.7,1.36]
[1729574204945,1.36,2647.8,2647.7,1.36]
[1729574205245,1.36,2647.8,2647.7,1.73781]
[1729574205633,1.36,2647.8,2646.7,4.2482634]
[1729574205634,1.36,2647.8,2646.9,6.12802166]
[1729574205837,1.36,2647.8,2647.6,1.73782]
[1729574206034,0.37787,2647.4,2647.0,0.3779]
[1729574206237,1.36,2647.1,2646.9,4.5678]
[1729574206442,1.36,2647.1,2647.0,1.36]
[1729574207143,1.36,2647.1,2646.9,44.0078]
[1729574207338,1.36,2647.0,2646.9,42.16]
[1729574208646,1.36,2647.0,2646.9,42.53793]
[1729574209335,0.37791,2647.0,2646.9,42.16]
[1729574209550,1.36,2647.0,2646.9,42.16]
[1729574209750,1.36,2647.0,2646.9,42.53793]
[1729574210643,1.36,2647.0,2646.9,42.16]
[1729574211041,3.2078,2647.1,2647.0,0.37791]
[1729574211338,3.2078,2647.1,2647.0,1.73791]
[1729574211748,3.2078,2647.1,2647.0,1.36]
[1729574212045,4.5678,2647.1,2647.0,1.36]
[1729574212554,4.5678,2647.1,2646.9,42.16]
[1729574212744,1.36,2647.0,2646.9,42.16]
[1729574213047,5.19819847,2647.0,2646.5,3.2078]
[1729574213251,1.36,2646.8,2646.5,3.2078]
[1729574213450,1.36,2646.8,2646.7,1.73796]
[1729574213754,1.36,2646.8,2646.7,42.53796]
[1729574214050,1.36,2646.8,2646.7,1.73796]
[1729574214248,1.36,2646.8,2646.7,1.36]
[1729574214450,1.36,2646.8,2646.7,1.73796]
[1729574214760,1.36,2646.8,2646.7,1.36]
[1729574214761,1.73794,2646.8,2646.7,1.36]
[1729574215143,1.73794,2646.8,2646.6,40.8]
[1729574215353,1.73796,2646.7,2646.6,40.8]
[1729574215648,1.73796,2646.7,2646.2,1.73802]
[1729574215649,0.37799,2646.5,2646.2,1.73802]
[1729574215853,1.36,2646.3,2646.2,1.73802]
[1729574216044,1.36,2646.3,2646.2,42.53802]
[1729574216240,1.36,2646.3,2646.2,40.8]
[1729574216441,1.73801,2646.3,2646.1,4.5678]
[1729574216645,1.36,2646.2,2646.1,3.2078]
[1729574217950,1.36,2646.2,2646.1,3.58584]
[1729574218347,3.32801,2646.4,2646.1,3.58584]
[1729574218655,0.06061594,2646.3,2646.1,0.37804]
[1729574219549,0.06061594,2646.3,2646.0,40.8]
[1729574219854,0.06061594,2646.3,2646.2,0.37803]
[1729574220449,0.06061594,2646.3,2646.1,0.37803]
[1729574220859,0.06061963,2646.2,2646.1,0.37803]
[1729574221155,0.06061963,2646.3,2646.1,0.37803]
[1729574221455,6.1578,2646.4,2646.1,0.37803]
[1729574221662,6.1578,2646.4,2646.0,40.8]
[1729574221663,0.06061731,2646.3,2646.0,40.8]
[1729574221856,0.06061731,2646.3,2646.1,0.37803]
[1729574222150,0.06061731,2646.3,2646.0,40.8]
[1729574222349,0.06061731,2646.3,2646.0,41.17805]
[1729574222751,0.06061731,2646.3,2646.1,0.37803]
[1729574222947,0.06061731,2646.3,2646.0,41.17805]
[1729574223258,0.06061731,2646.3,2646.1,0.37804]
[1729574223667,6.1578,2646.4,2646.1,0.37804]
[1729574223852,0.06061911,2646.2,2646.1,0.37804]
[1729574224251,0.06061894,2646.2,2646.1,0.37804]
[1729574224462,6.1578,2646.4,2646.2,0.37803]
[1729574224764,3.2078,2646.4,2646.3,0.37801]
[1729574224960,3.26841307,2646.4,2646.3,0.37801]
[1729574225459,3.2078,2646.4,2646.3,0.37801]
[1729574225760,3.26841435,2646.4,2646.3,0.37801]
[1729574226058,6.21841435,2646.4,2646.0,40.8]
[1729574226260,3.2078,2646.1,2646.0,0.37804]
[1729574226559,2.95,2646.2,2646.0,0.37804]
[1729574226764,6.5358,2646.4,2646.0,0.37804]
[1729574227066,6.5358,2646.4,2645.7,3.2078]
[1729574227067,0.0606189,2646.3,2645.7,3.2078]
[1729574227364,3.2078,2646.4,2646.3,0.37801]
[1729574230167,2.95,2646.6,2646.4,0.37799]
[1729574230358,3.2078,2646.5,2646.0,0.94513]
[1729574230660,3.2078,2646.5,2646.4,0.378]
[1729574230863,6.1578,2646.6,2646.4,0.378]
[1729574231257,0.38111486,2647.0,2646.0,2.95]
[1729574231258,3.2078,2646.9,2646.0,2.95]
[1729574231467,4.1968,2646.9,2646.2,2.95]
[1729574231768,4.1968,2646.9,2646.7,0.37795]
[1729574232264,4.1968,2646.9,2646.8,41.17794]
[1729574232461,4.1968,2646.9,2646.4,0.94501]
[1729574232668,4.1968,2646.9,2646.7,0.37795]
[1729574232853,4.1968,2646.9,2646.8,0.37794]
[1729574233459,4.25740383,2646.9,2646.8,0.37794]
[1729574233653,4.1968,2646.9,2646.8,0.37794]
[1729574234167,4.1968,2646.9,2646.7,0.37795]
[1729574236457,4.1968,2646.9,2646.6,0.37797]
[1729574236668,4.1968,2646.9,2646.7,0.37795]
[1729574238065,4.1968,2646.9,2646.8,0.37794]
[1729574238263,5.61740239,2646.9,2646.6,1.36]
[1729574238466,4.1968,2646.9,2646.7,0.37795]
[1729574238867,4.1968,2646.9,2646.6,1.36]
[1729574239267,4.1968,2646.9,2646.7,0.37795]
[1729574239460,1.36,2646.8,2646.5,40.8]
[1729574239675,1.36,2646.6,2646.5,41.17799]
[1729574242469,1.36,2646.6,2646.5,42.53799]
[1729574242771,1.36,2646.6,2646.5,41.17799]
[1729574249769,1.42060591,2646.6,2646.5,41.17799]
[1729574249972,1.36,2646.6,2646.5,41.17799]
[1729574250271,1.42060673,2646.6,2646.5,41.17799]
[1729574251376,1.42060673,2646.6,2646.5,0.37799]
[1729574251581,1.36,2646.6,2646.5,0.37799]
[1729574251884,1.42060635,2646.6,2646.5,0.37799]
[1729574252272,1.36,2646.6,2646.5,0.37799]
[1729574252679,1.42060636,2646.6,2646.5,0.37799]
[1729574253182,1.42060681,2646.6,2646.5,0.37799]
[1729574253681,1.36,2646.6,2646.5,0.37799]
[1729574254588,1.42060682,2646.6,2646.5,0.37799]
[1729574254790,1.36,2646.6,2646.5,0.37799]
[1729574258792,3.2078,2646.9,2646.5,1.36]
[1729574258998,3.2078,2646.9,2646.8,1.73794]
[1729574259288,1.36,2647.2,2647.1,0.3779]
[1729574259489,1.36,2647.2,2647.1,1.7379]
[1729574260787,3.2078,2647.3,2647.1,1.36]
[1729574260993,3.2078,2647.3,2647.2,0.37789]
[1729574261188,4.5678,2647.3,2647.2,0.37789]
[1729574261396,4.62839069,2647.3,2647.0,0.3779]
[1729574261600,0.4384838,2647.2,2646.8,0.37793]
[1729574261791,3.2078,2647.0,2646.8,0.37793]
[1729574262185,1.36,2646.9,2646.8,0.37793]
[1729574264299,3.2078,2647.0,2646.4,41.74498]
[1729574264492,3.2078,2647.0,2646.9,0.37793]
[1729574265193,4.2258,2647.3,2647.1,0.37789]
[1729574265492,0.06059393,2647.2,2647.1,0.37789]
[1729574265698,4.2258,2647.3,2647.2,0.37789]
[1729574265900,4.28639019,2647.3,2647.2,0.37789]
[1729574266599,3.26839019,2647.3,2647.2,0.37789]
[1729574268294,3.26839004,2647.3,2647.2,0.37789]
[1729574268500,3.26839201,2647.3,2647.2,0.37789]
[1729574269603,3.26839201,2647.3,2647.1,0.37789]
[1729574269800,3.26839201,2647.3,2646.7,0.9449]
[1729574269801,3.2078,2647.3,2646.7,0.9449]
[1729574270101,3.2078,2647.3,2647.2,0.37789]
[1729574270298,3.26839175,2647.3,2647.2,0.37789]
[1729574272303,3.26839249,2647.3,2647.2,0.37789]
[1729574274094,3.64627249,2647.3,2647.0,0.37791]
[1729574274297,0.06059249,2647.2,2647.0,0.37791]
[1729574274802,0.43848249,2647.2,2646.9,0.37792]
[1729574275100,0.06059249,2647.1,2646.9,0.37792]
[1729574275303,3.58568,2647.3,2647.0,0.37791]
[1729574275501,3.58568,2647.3,2646.5,0.98642166]
[1729574275502,0.06059783,2647.2,2646.5,0.98642166]
[1729574275698,0.43848783,2647.2,2646.9,0.37793]
[1729574275903,0.06059783,2647.1,2646.9,0.37793]
[1729574276404,0.37789,2647.2,2646.9,0.37793]
[1729574276598,0.06059834,2647.1,2646.9,0.37793]
[1729574277105,3.32789,2647.2,2646.9,0.37793]
[1729574277303,0.0605987,2647.1,2646.9,0.37793]
[1729574278202,3.2078,2647.0,2646.8,0.37794]
[1729574278703,0.06059955,2646.9,2646.8,0.37794]
[1729574280202,3.2078,2647.0,2646.8,0.37794]
[1729574280405,0.06060044,2646.9,2646.8,0.37794]
[1729574282107,0.06059917,2646.9,2646.8,0.37794]
[1729574282903,0.06060165,2646.9,2646.8,0.37794]
[1729574283105,0.06060165,2646.9,2646.4,41.74498]
[1729574283106,0.06060165,2646.9,2646.7,0.37795]
[1729574283306,0.06060165,2646.9,2646.4,41.74498]
[1729574283516,0.06060165,2646.9,2646.7,0.37795]
[1729574284105,0.06060165,2646.9,2646.4,41.74498]
[1729574284304,6.1578,2647.0,2646.8,0.37794]
[1729574284505,0.06060137,2646.9,2646.8,0.37794]
[1729574285102,0.06060137,2646.9,2646.4,41.74498]
[1729574285103,0.06060137,2646.9,2646.7,0.37796]
[1729574285411,2.95,2646.8,2646.7,0.37796]
[1729574285709,2.95,2646.8,2646.5,0.37798]
[1729574285710,6.78900137,2646.8,2646.5,0.37798]
[1729574285898,0.06060137,2646.7,2646.6,0.37797]
[1729574286305,5.19900137,2646.7,2646.6,0.37797]
[1729574286805,5.1384,2646.7,2646.6,0.37797]
[1729574287010,5.19900752,2646.7,2646.6,0.37797]
[1729574287413,5.1384,2646.7,2646.6,0.37797]
[1729574287610,5.19900693,2646.7,2646.6,0.37797]
[1729574288111,1.42060693,2646.7,2646.6,0.37797]
[1729574288612,1.42060693,2646.7,2646.4,40.8]
[1729574288810,1.004,2646.8,2646.1,0.37803]
[1729574288811,1.73799,2646.5,2646.1,0.37803]
[1729574289010,1.36,2646.2,2646.1,0.37803]
[1729574289214,1.36,2646.2,2646.1,42.53803]
[1729574289507,1.36,2646.2,2646.1,41.17803]
[1729574289907,1.36,2646.2,2646.1,0.37803]
[1729574293116,1.36,2646.2,2646.1,0.37804]
[1729574298513,1.36,2646.2,2646.0,40.8]
[1729574298713,1.36,2646.1,2646.0,41.17805]
[1729574302815,2.72,2646.1,2646.0,40.8]
[1729574303016,6.55982072,2646.1,2645.3,1.36]
[1729574303322,6.55982072,2646.1,2645.3,0.37816]
[1729574303323,1.36,2645.4,2645.3,0.37816]
[1729574305328,1.36,2645.4,2645.3,1.73816]
[1729574305823,1.36,2645.4,2645.3,0.37816]
[1729574314532,3.2078,2645.7,2645.3,1.73816]
[1729574314832,3.2078,2645.7,2645.6,0.37811]
[1729574314833,4.2048,2645.7,2645.6,0.37811]
[1729574315019,4.26542982,2645.7,2645.6,0.37811]
[1729574315426,4.2048,2645.7,2645.6,0.37811]
[1729574316026,4.26542878,2645.7,2645.6,0.37811]
[1729574316323,5.62542878,2645.7,2645.6,0.37811]
[1729574316724,2.41762878,2645.7,2645.6,0.37811]
[1729574317124,2.357,2645.7,2645.6,0.37811]
[1729574317326,1.36,2645.7,2645.6,0.37811]
[1729574324127,1.42063385,2645.7,2645.6,0.37811]
[1729574324333,1.36,2645.7,2645.6,0.37811]
[1729574335041,1.42063205,2645.7,2645.6,0.37811]
[1729574335242,1.36,2645.7,2645.6,0.37811]
[1729574337443,1.42063412,2645.7,2645.6,0.37811]
[1729574337641,1.36,2645.7,2645.6,0.37811]
[1729574339239,1.42063225,2645.7,2645.6,0.37811]
[1729574341243,1.42063203,2645.7,2645.6,0.37811]
[1729574341445,1.48126405,2645.7,2645.6,0.37811]
[1729574343338,4.68906405,2645.7,2645.6,0.37811]
[1729574344445,4.62843203,2645.7,2645.6,0.37811]
[1729574344639,4.68906437,2645.7,2645.6,0.37811]
[1729574344838,4.68906437,2645.7,2645.2,1.36]
[1729574345143,1.36,2645.3,2645.2,1.73817]
[1729574345545,1.36,2645.3,2645.2,5.51817]
[1729574346147,1.36,2645.3,2645.2,1.73817]
[1729574346451,1.36,2645.3,2645.2,5.51817]
[1729574347339,1.36,2645.3,2645.2,6.50459166]
[1729574348643,1.36,2645.3,2645.2,8.28132615]
[1729574349153,1.36,2645.4,2645.3,0.37816]
[1729574350445,1.36,2645.4,2645.3,1.36976653]
[1729574351446,3.2078,2645.7,2645.6,0.37811]
[1729574351646,4.5678,2645.7,2645.6,0.37811]
[1729574355646,1.36,2645.7,2645.6,0.37811]
[1729574368854,1.36,2645.7,2645.3,0.99160653]
[1729574369059,1.36,2645.7,2645.3,1.36975653]
[1729574369060,1.36,2645.4,2645.3,1.36975653]
[1729574369264,1.36,2645.4,2645.3,0.37815]
[1729574371556,1.36,2645.4,2645.3,1.73815]
[1729574372755,3.2078,2645.8,2645.3,1.36]
[1729574372963,3.2078,2646.1,2646.0,0.37806]
[1729574373162,3.26842646,2646.1,2646.0,1.73806]
[1729574373470,1.36,2646.4,2646.3,0.37801]
[1729574373663,1.42061417,2646.4,2646.3,0.37801]
[1729574373865,1.42061175,2646.4,2646.3,0.37801]
[1729574374167,0.0606104,2646.4,2646.3,1.73801]
[1729574374467,1.36,2646.4,2646.3,1.73801]
[1729574376669,1.006,2646.8,2646.3,1.36]
[1729574376865,1.36,2646.5,2646.4,1.36]
[1729574377066,1.36,2646.5,2646.4,1.738]
[1729574378168,1.36,2646.7,2646.4,1.36]
[1729574378368,1.36,2646.7,2646.6,1.73797]
[1729574378570,3.2078,2646.9,2646.6,1.36]
[1729574378771,4.5678,2646.9,2646.8,1.73794]
[1729574379872,4.5678,2646.9,2646.8,0.37794]
[1729574380672,5.98840027,2646.9,2646.7,0.37795]
[1729574380968,1.36,2646.8,2646.7,0.37795]
[1729574381174,1.42060257,2646.8,2646.7,0.37795]
[1729574381468,1.36,2646.8,2646.7,0.37795]
[1729574382069,1.36,2646.8,2646.2,0.94508]
[1729574382070,1.42060202,2646.8,2646.6,0.37796]
[1729574382263,1.36,2646.7,2646.6,0.37796]
[1729574383777,1.36,2646.7,2646.6,1.73796]
[1729574384470,1.36,2646.7,2646.6,0.37796]
[1729574385668,1.36,2646.7,2646.6,1.73796]
[1729574388372,3.2078,2646.8,2646.6,5.1384]
[1729574388671,1.36,2646.9,2646.7,1.36]
[1729574388875,1.36,2646.9,2646.8,42.53794]
[1729574390181,4.5678,2647.1,2647.0,0.37791]
[1729574390872,4.6283956,2647.1,2647.0,0.37791]
[1729574393073,1.36,2647.1,2647.0,0.37791]
[1729574393273,4.62839612,2647.1,2647.0,0.37791]
[1729574393776,4.62839674,2647.1,2647.0,0.37791]
[1729574394482,4.62839674,2647.1,2646.8,1.36]
[1729574394679,0.06059674,2647.0,2646.9,0.37793]
[1729574396074,1.42059674,2647.0,2646.9,0.37793]
[1729574396280,1.42059674,2647.0,2646.8,0.37793]
[1729574396577,1.42059674,2646.9,2646.8,0.37794]
[1729574397274,1.42059928,2646.9,2646.8,0.37794]
[1729574399680,1.36,2646.9,2646.8,0.37794]
[1729574400779,1.36,2646.9,2646.4,1.36]
[1729574401085,3.2078,2647.1,2646.5,0.37799]
[1729574401086,1.36,2646.6,2646.5,0.37799]
[1729574401777,1.36,2646.6,2646.5,1.73799]
[1729574401974,1.36,2646.7,2646.5,1.36]
[1729574402188,1.36,2646.7,2646.6,1.73797]
[1729574402483,1.36,2647.0,2646.6,1.36]
[1729574402695,1.36,2647.0,2646.9,1.73793]
[1729574402985,3.85e-06,2647.0,2646.9,1.73793]
[1729574403192,3.2078,2648.2,2648.1,0.37776]
[1729574403578,10.976,2649.4,2648.1,0.37776]
[1729574403579,3.2078,2648.5,2648.4,0.37771]
[1729574403779,15.37869239,2649.6,2648.6,0.37769]
[1729574403780,1.006,2648.7,2648.6,0.37769]
[1729574403978,4.5678,2648.9,2648.2,40.8]
[1729574403979,1.36,2648.8,2648.7,1.73767]
[1729574404487,5.19528465,2648.8,2648.7,1.73767]
[1729574404683,5.1352,2648.8,2648.7,1.73767]
[1729574404985,5.2553697,2648.8,2648.7,1.73767]
[1729574405285,5.19528391,2648.8,2648.7,1.73767]
[1729574405681,5.31545407,2648.8,2648.7,1.73767]
[1729574406279,3.89536901,2648.8,2648.7,0.37767]
[1729574406485,3.89536901,2648.8,2648.3,2.95]
[1729574406680,0.12016901,2648.8,2648.5,0.37769]
[1729574408780,0.12016901,2648.8,2648.3,0.37772]
[1729574410781,0.12016901,2648.8,2648.1,2.95]
[1729574410984,1.09816901,2648.8,2648.3,0.37772]
[1729574411987,0.978,2648.8,2648.4,0.37771]
[1729574413083,0.978,2648.8,2648.3,0.37772]
[1729574413585,2.95,2648.4,2647.7,3.2078]
[1729574413884,3.2078,2648.2,2647.7,3.2078]
[1729574414090,3.2078,2648.2,2647.3,0.94465]
[1729574414091,6.1578,2648.6,2647.8,2.95]
[1729574414289,3.2078,2648.6,2647.8,2.95]
[1729574414489,3.2078,2648.2,2648.1,0.37774]
[1729574416884,3.2078,2648.2,2647.8,2.95]
[1729574416885,3.2078,2648.2,2647.9,0.37779]
[1729574417085,3.2078,2648.2,2648.0,0.37777]
[1729574417682,3.2078,2648.2,2647.8,0.3778]
[1729574417997,3.2078,2648.2,2647.7,0.37781]
[1729574418288,3.2078,2648.2,2647.8,0.37779]
[1729574418492,3.2078,2648.2,2647.6,40.8]
[1729574418696,3.2078,2648.2,2647.9,0.37778]
[1729574419083,3.2078,2648.2,2647.6,40.8]
[1729574419290,3.2078,2648.2,2647.7,2.95]
[1729574419593,3.2078,2648.2,2647.9,0.37778]
[1729574420288,3.2078,2648.2,2647.8,0.3778]
[1729574420491,3.2078,2648.2,2648.0,0.37777]
[1729574420794,3.2078,2648.2,2648.1,0.37776]
[1729574421392,3.2078,2648.2,2647.9,2.95]
[1729574421590,3.2078,2648.2,2648.0,0.37776]
[1729574422093,0.37772,2648.4,2648.0,0.37776]
[1729574422291,3.2078,2648.2,2648.0,0.37777]
[1729574422600,3.2078,2648.2,2648.1,0.37776]
[1729574424300,1.3557,2648.5,2648.1,0.37776]
[1729574424494,3.2078,2648.2,2647.7,2.95]
[1729574424796,3.2078,2648.2,2648.0,0.37777]
[1729574428297,4.5678,2648.2,2648.1,1.36]
[1729574430607,1.36,2648.2,2648.1,1.36]
[1729574430802,4.5678,2648.2,2648.1,1.36]
[1729574431012,3.2078,2648.2,2648.1,1.36]
[1729574431308,4.5678,2648.2,2648.0,0.37777]
[1729574431511,4.5678,2648.2,2648.0,1.36]
[1729574432010,1.73776,2648.1,2648.0,1.36]
[1729574432299,1.73776,2648.1,2647.6,40.8]
[1729574432300,5.19610342,2648.1,2647.6,40.8]
[1729574432500,1.36,2647.8,2647.7,1.36]
[1729574432706,1.42010964,2647.8,2647.7,1.36]
[1729574433508,1.42010964,2647.8,2647.7,1.73781]
[1729574434311,0.06010964,2647.8,2647.4,40.8]
[1729574434512,6.1578,2648.2,2647.4,40.8]
[1729574434513,0.37779,2647.9,2647.6,0.37782]
[1729574434710,0.06011016,2647.8,2647.6,0.37782]
[1729574436213,0.06011016,2647.8,2647.4,40.8]
[1729574436214,0.06011016,2647.8,2647.5,0.37783]
[1729574436510,0.06011016,2647.8,2647.4,40.8]
[1729574436511,0.43792016,2647.8,2647.6,0.37783]
[1729574436715,0.37781,2647.8,2647.6,0.37783]
[1729574437911,3.2078,2647.9,2647.6,0.37783]
[1729574438120,3.58559,2647.9,2647.6,0.37783]
[1729574438605,0.3778,2647.8,2647.6,0.37783]
[1729574438806,3.2078,2647.9,2647.4,40.8]
[1729574439005,0.43791117,2647.8,2647.6,0.37783]
[1729574439309,0.37781,2647.8,2647.6,0.37783]
[1729574439511,1.33681,2647.8,2647.6,0.37783]
[1729574439907,1.33681,2647.8,2647.3,43.75]
[1729574440212,1.33681,2647.8,2647.5,0.37783]
[1729574440413,1.33681,2647.8,2647.5,0.37784]
[1729574442415,0.959,2647.8,2647.5,0.37783]
[1729574442711,3.2078,2647.9,2647.8,0.3778]
[1729574443117,3.26790935,2647.9,2647.8,0.3778]
[1729574443617,3.2078,2647.9,2647.8,0.3778]
[1729574448014,4.1668,2648.2,2647.5,3.89459]
[1729574448320,0.06010422,2648.1,2647.9,0.37778]
[1729574449416,0.06010422,2648.1,2647.5,3.89459]
[1729574449625,0.06010422,2648.1,2648.0,0.37777]
[1729574450324,0.06010422,2648.1,2647.6,0.94456]
[1729574451025,0.06010422,2648.1,2647.9,0.37778]
[1729574451026,3.2078,2648.0,2647.9,0.37778]
[1729574451725,3.2078,2648.0,2647.4,3.89465]
[1729574451919,3.2078,2648.0,2647.8,0.37779]
[1729574452424,3.2078,2648.0,2647.9,0.37779]
[1729574456123,6.21790595,2648.0,2647.8,0.3778]
[1729574456328,6.21790595,2648.0,2647.3,42.72937231]
[1729574456329,4.5678,2648.0,2647.9,1.73779]
[1729574457723,4.5678,2648.0,2647.9,1.36]
[1729574457929,4.5678,2648.0,2647.9,1.73779]
[1729574460418,4.62790577,2648.0,2647.9,1.73779]
[1729574461224,3.2078,2648.0,2647.9,1.73779]
[1729574462531,3.2078,2648.0,2647.9,5.51459]
[1729574463130,3.2078,2648.0,2647.9,1.73779]
[1729574466039,1.36,2648.3,2648.1,0.37775]
[1729574466236,0.06009992,2648.2,2648.1,1.73775]
[1729574466429,3.26789992,2648.2,2648.1,1.73775]
[1729574466624,3.26789985,2648.2,2648.1,1.73775]
[1729574468337,3.2078,2648.2,2648.1,1.73775]
[1729574471037,8.40390244,2648.2,2647.7,1.36]
[1729574471235,1.36,2648.0,2647.9,1.36]
[1729574471937,0.37795,2646.8,2646.4,0.98469231]
[1729574472127,0.37795,2646.8,2645.9,0.98469231]
[1729574472128,5.9278,2646.5,2645.9,0.98469231]
[1729574472332,1.36,2646.0,2645.7,0.3545424]
[1729574472541,1.36,2645.8,2645.7,0.3545424]
[1729574472934,1.36,2645.8,2645.7,41.1545424]
[1729574473539,1.36,2645.8,2645.7,40.8]
[1729574473747,1.36,2645.8,2645.7,42.16]
[1729574474238,3.2078,2645.9,2645.7,40.8]
[1729574474742,4.30804,2646.1,2645.7,40.8]
[1729574474944,3.26795957,2646.0,2645.7,40.8]
[1729574475144,3.2078,2646.0,2645.7,40.8]
[1729574475347,3.58586,2646.0,2645.7,40.8]